[Event "Titled Tuesday Blitz May 16 Early 2023"]
[White "Sebag, Marie"]
[Black "Jumanov, Elbek"]
[WhiteFideId "617822"]
[BlackFideId "14202905"]
[WhiteElo "2431"]
[BlackElo "2055"]
[Result "1-0"]
[Round "05"]
[TimeControl "180+2"]
[Date "2023.05.16"]
[WhiteClock "0:00:10"]
[BlackClock "0:00:04"]

1. c4 {[%clk 0:02:58]}  c5 {[%clk 0:02:56]} 2. Nc3 {[%clk 0:02:57]}  Nc6 {[%clk 0:02:55]} 3. g3 {[%clk 0:02:58]}  g6 {[%clk 0:02:54]} 4. Bg2 {[%clk 0:02:58]}  Bg7 {[%clk 0:02:55]} 5. Nf3 {[%clk 0:02:58]}  Nf6 {[%clk 0:02:55]} 6. O-O {[%clk 0:02:57]}  O-O {[%clk 0:02:54]} 7. d3 {[%clk 0:02:58]}  d5 {[%clk 0:02:53]} 8. cxd5 {[%clk 0:02:57]}  Nxd5 {[%clk 0:02:54]} 9. Bd2 {[%clk 0:02:57]}  Nc7 {[%clk 0:02:52]} 10. Rc1 {[%clk 0:02:56]}  b6 {[%clk 0:02:52]} 11. a3 {[%clk 0:02:51]}  Bb7 {[%clk 0:02:52]} 12. Qc2 {[%clk 0:02:30]}  Ne6 {[%clk 0:02:50]} 13. e3 {[%clk 0:02:21]}  Qd7 {[%clk 0:02:42]} 14. Rfd1 {[%clk 0:02:20]}  Rfd8 {[%clk 0:02:40]} 15. Be1 {[%clk 0:02:19]}  Rac8 {[%clk 0:02:31]} 16. Qa4 {[%clk 0:02:07]}  Na5 {[%clk 0:01:25]} 17. Qh4 {[%clk 0:01:13]}  Bf6 {[%clk 0:00:44]} 18. Qh3 {[%clk 0:01:05]}  Bc6 {[%clk 0:00:37]} 19. b4 {[%clk 0:00:45]}  cxb4 {[%clk 0:00:34]} 20. axb4 {[%clk 0:00:45]}  Nb7 {[%clk 0:00:32]} 21. d4 {[%clk 0:00:23]}  Bxf3 {[%clk 0:00:27]} 22. Bxf3 {[%clk 0:00:22]}  Ng5 {[%clk 0:00:27]} 23. Qg2 {[%clk 0:00:19]}  Nxf3+ {[%clk 0:00:26]} 24. Qxf3 {[%clk 0:00:19]}  Nd6 {[%clk 0:00:27]} 25. Ne4 {[%clk 0:00:18]}  Nxe4 {[%clk 0:00:26]} 26. Qxe4 {[%clk 0:00:19]}  Qa4 {[%clk 0:00:27]} 27. h4 {[%clk 0:00:17]}  h5 {[%clk 0:00:26]} 28. Qb7 {[%clk 0:00:16]}  Rxc1 {[%clk 0:00:21]} 29. Rxc1 {[%clk 0:00:16]}  Rd7 {[%clk 0:00:21]} 30. Qc8+ {[%clk 0:00:15]}  Kh7 {[%clk 0:00:18]} 31. Kg2 {[%clk 0:00:16]}  Kg7 {[%clk 0:00:16]} 32. Qe8 {[%clk 0:00:14]}  Qb5 {[%clk 0:00:10]} 33. Rc8 {[%clk 0:00:13]}  Qd5+ {[%clk 0:00:09]} 34. f3 {[%clk 0:00:13]}  g5 {[%clk 0:00:04]} 35. Qh8+ {[%clk 0:00:10]}  Kg6 {[%clk 0:00:04]} 36. Rg8+ {[%clk 0:00:10]}  Kf5 {[%clk 0:00:05]} 37. e4+ {[%clk 0:00:10]}  Qxe4 {[%clk 0:00:05]} 38. fxe4+ {[%clk 0:00:10]}  Kxe4 {[%clk 0:00:05]} 39. Qxh5 {[%clk 0:00:10]}  Rxd4 {[%clk 0:00:04]} 40. Qf3+ {[%clk 0:00:10]}  Ke5 {[%clk 0:00:04]} 41. Bc3 {[%clk 0:00:10]}  Ke6 {[%clk 0:00:03]} 42. Bxd4 {[%clk 0:00:10]}  Bxd4 {[%clk 0:00:04]} 43. Qe4+ {[%clk 0:00:10]}  Be5 {[%clk 0:00:05]} 44. hxg5 {[%clk 0:00:10]}  Kd6 {[%clk 0:00:05]} 45. g6 {[%clk 0:00:10]}  fxg6 {[%clk 0:00:04]} 46. Rxg6+ {[%clk 0:00:10]} 1-0


[Site "https://www.chess.com"]

[Event "Titled Tuesday Blitz May 16 Early 2023"]
[White "Rios Escobar, Adan"]
[Black "Jakubowski, Krzysztof"]
[WhiteFideId "3403645"]
[BlackFideId "1112848"]
[WhiteElo "2455"]
[BlackElo "2359"]
[Result "1-0"]
[Round "05"]
[TimeControl "180+2"]
[Date "2023.05.16"]
[WhiteClock "0:00:02"]
[BlackClock "0:00:45"]

1. d4 {[%clk 0:03:00]}  Nf6 {[%clk 0:02:57]} 2. g3 {[%clk 0:03:00]}  d5 {[%clk 0:02:54]} 3. Nf3 {[%clk 0:02:59]}  c6 {[%clk 0:02:53]} 4. c4 {[%clk 0:02:55]}  dxc4 {[%clk 0:02:51]} 5. Bg2 {[%clk 0:02:51]}  b5 {[%clk 0:02:33]} 6. O-O {[%clk 0:02:47]}  a5 {[%clk 0:02:30]} 7. b3 {[%clk 0:02:47]}  cxb3 {[%clk 0:02:28]} 8. a4 {[%clk 0:02:41]}  b4 {[%clk 0:02:26]} 9. Qxb3 {[%clk 0:02:40]}  e6 {[%clk 0:02:24]} 10. Bb2 {[%clk 0:02:34]}  Be7 {[%clk 0:02:22]} 11. Ne5 {[%clk 0:02:31]}  O-O {[%clk 0:02:18]} 12. Nd2 {[%clk 0:02:17]}  Ra6 {[%clk 0:02:04]} 13. Rac1 {[%clk 0:02:14]}  Bb7 {[%clk 0:02:03]} 14. Rc2 {[%clk 0:02:05]}  Nd5 {[%clk 0:01:46]} 15. Rfc1 {[%clk 0:02:02]}  Ba8 {[%clk 0:01:33]} 16. Ne4 {[%clk 0:02:00]}  f6 {[%clk 0:01:23]} 17. Nd3 {[%clk 0:01:58]}  Nd7 {[%clk 0:01:22]} 18. Bh3 {[%clk 0:01:50]}  f5 {[%clk 0:01:21]} 19. Nec5 {[%clk 0:01:32]}  Nxc5 {[%clk 0:01:20]} 20. Nxc5 {[%clk 0:01:33]}  Bxc5 {[%clk 0:01:19]} 21. dxc5 {[%clk 0:01:31]}  Ra7 {[%clk 0:01:18]} 22. e4 {[%clk 0:01:26]}  fxe4 {[%clk 0:01:17]} 23. Bxe6+ {[%clk 0:01:24]}  Kh8 {[%clk 0:01:17]} 24. Re1 {[%clk 0:01:07]}  e3 {[%clk 0:01:06]} 25. fxe3 {[%clk 0:00:55]}  Re7 {[%clk 0:01:06]} 26. Bh3 {[%clk 0:00:30]}  Bb7 {[%clk 0:01:06]} 27. Rd2 {[%clk 0:00:15]}  Qe8 {[%clk 0:01:04]} 28. Bd4 {[%clk 0:00:09]}  Bc8 {[%clk 0:00:59]} 29. Bg2 {[%clk 0:00:10]}  Bf5 {[%clk 0:00:59]} 30. Qb2 {[%clk 0:00:10]}  Be4 {[%clk 0:00:58]} 31. Bxe4 {[%clk 0:00:09]}  Rxe4 {[%clk 0:00:58]} 32. Bxg7+ {[%clk 0:00:09]}  Kg8 {[%clk 0:00:59]} 33. Bxf8 {[%clk 0:00:10]}  Qxf8 {[%clk 0:01:00]} 34. Rf2 {[%clk 0:00:09]}  Qh6 {[%clk 0:00:59]} 35. Qc2 {[%clk 0:00:06]}  Rxe3 {[%clk 0:00:58]} 36. Rxe3 {[%clk 0:00:05]}  Qxe3 {[%clk 0:00:58]} 37. Qf5 {[%clk 0:00:05]}  Qe1+ {[%clk 0:00:57]} 38. Rf1 {[%clk 0:00:06]}  Qe3+ {[%clk 0:00:55]} 39. Qf2 {[%clk 0:00:04]}  Qe7 {[%clk 0:00:53]} 40. Qd4 {[%clk 0:00:03]}  h5 {[%clk 0:00:51]} 41. Rf5 {[%clk 0:00:02]}  Kh7 {[%clk 0:00:50]} 42. Rxh5+ {[%clk 0:00:02]}  Kg6 {[%clk 0:00:50]} 43. Qg4+ {[%clk 0:00:03]}  Kf6 {[%clk 0:00:50]} 44. Rf5+ {[%clk 0:00:02]}  Ke6 {[%clk 0:00:50]} 45. Rg5+ {[%clk 0:00:01]}  Kf7 {[%clk 0:00:45]} 46. Rg7+ {[%clk 0:00:02]} 1-0


[Site "https://www.chess.com"]

[Event "Titled Tuesday Blitz May 16 Early 2023"]
[White "Bodnaruk, Anastasia"]
[Black "Zavortink, Matt"]
[WhiteFideId "4181751"]
[BlackFideId "2034263"]
[WhiteElo "2304"]
[BlackElo "2454"]
[Result "1-0"]
[Round "05"]
[TimeControl "180+2"]
[Date "2023.05.16"]
[WhiteClock "0:00:08"]
[BlackClock "0:00:02"]

1. e4 {[%clk 0:03:00]}  e6 {[%clk 0:02:59]} 2. d4 {[%clk 0:03:00]}  d5 {[%clk 0:02:59]} 3. e5 {[%clk 0:03:00]}  c5 {[%clk 0:02:59]} 4. c3 {[%clk 0:03:01]}  Nc6 {[%clk 0:02:59]} 5. Nf3 {[%clk 0:03:01]}  Bd7 {[%clk 0:03:00]} 6. Be2 {[%clk 0:02:56]}  Nge7 {[%clk 0:02:59]} 7. Na3 {[%clk 0:02:54]}  cxd4 {[%clk 0:02:58]} 8. cxd4 {[%clk 0:02:54]}  Nf5 {[%clk 0:02:58]} 9. Nc2 {[%clk 0:02:54]}  Be7 {[%clk 0:02:57]} 10. O-O {[%clk 0:02:52]}  O-O {[%clk 0:02:57]} 11. g4 {[%clk 0:02:50]}  Nh4 {[%clk 0:02:53]} 12. Nxh4 {[%clk 0:02:50]}  Bxh4 {[%clk 0:02:54]} 13. f4 {[%clk 0:02:51]}  f6 {[%clk 0:02:45]} 14. Be3 {[%clk 0:02:41]}  Rc8 {[%clk 0:02:33]} 15. Bd3 {[%clk 0:02:32]}  fxe5 {[%clk 0:02:10]} 16. dxe5 {[%clk 0:02:31]}  Be7 {[%clk 0:02:06]} 17. Qd2 {[%clk 0:02:11]}  d4 {[%clk 0:01:39]} 18. Bf2 {[%clk 0:01:56]}  Qb6 {[%clk 0:01:26]} 19. Rab1 {[%clk 0:01:17]}  Rfd8 {[%clk 0:01:10]} 20. Be4 {[%clk 0:01:12]}  Be8 {[%clk 0:01:02]} 21. b4 {[%clk 0:00:51]}  Qb5 {[%clk 0:00:44]} 22. Rb3 {[%clk 0:00:47]}  d3 {[%clk 0:00:26]} 23. Rxd3 {[%clk 0:00:42]}  Rxd3 {[%clk 0:00:25]} 24. Qxd3 {[%clk 0:00:40]}  Qxd3 {[%clk 0:00:25]} 25. Bxd3 {[%clk 0:00:40]}  Nxb4 {[%clk 0:00:25]} 26. Nxb4 {[%clk 0:00:35]}  Bxb4 {[%clk 0:00:26]} 27. Bxa7 {[%clk 0:00:35]}  Ra8 {[%clk 0:00:24]} 28. Bf2 {[%clk 0:00:20]}  Bc6 {[%clk 0:00:16]} 29. Bc4 {[%clk 0:00:18]}  Kf7 {[%clk 0:00:13]} 30. f5 {[%clk 0:00:17]}  Bd5 {[%clk 0:00:13]} 31. Bxd5 {[%clk 0:00:15]}  exd5 {[%clk 0:00:13]} 32. Rd1 {[%clk 0:00:15]}  Ra5 {[%clk 0:00:10]} 33. Rc1 {[%clk 0:00:11]}  Rxa2 {[%clk 0:00:09]} 34. e6+ {[%clk 0:00:11]}  Ke8 {[%clk 0:00:08]} 35. Rc8+ {[%clk 0:00:08]}  Ke7 {[%clk 0:00:08]} 36. Bh4+ {[%clk 0:00:09]}  Kd6 {[%clk 0:00:07]} 37. e7 {[%clk 0:00:09]}  Bc5+ {[%clk 0:00:02]} 38. Rxc5 {[%clk 0:00:08]} 1-0


[Site "https://www.chess.com"]

[Event "Titled Tuesday Blitz May 16 Early 2023"]
[White "Avazkhonov, Alikhon"]
[Black "Sourath Biswas"]
[WhiteFideId "14208504"]
[BlackFideId "35091484"]
[WhiteElo "1739"]
[BlackElo "2171"]
[Result "0-1"]
[Round "05"]
[TimeControl "180+2"]
[Date "2023.05.16"]
[WhiteClock "0:00:02"]
[BlackClock "0:00:24"]

1. d4 {[%clk 0:02:35]}  Nf6 {[%clk 0:02:59]} 2. c4 {[%clk 0:02:36]}  g6 {[%clk 0:02:59]} 3. Nc3 {[%clk 0:02:36]}  Bg7 {[%clk 0:03:00]} 4. e4 {[%clk 0:02:36]}  O-O {[%clk 0:03:01]} 5. f3 {[%clk 0:02:37]}  d6 {[%clk 0:03:00]} 6. Be3 {[%clk 0:02:36]}  c5 {[%clk 0:03:01]} 7. Nge2 {[%clk 0:02:34]}  Nc6 {[%clk 0:03:01]} 8. Qd2 {[%clk 0:02:35]}  a6 {[%clk 0:02:45]} 9. d5 {[%clk 0:02:35]}  Ne5 {[%clk 0:02:45]} 10. Ng3 {[%clk 0:02:35]}  Bd7 {[%clk 0:02:32]} 11. a4 {[%clk 0:00:54]}  Qa5 {[%clk 0:02:20]} 12. h3 {[%clk 0:00:25]}  b5 {[%clk 0:02:17]} 13. cxb5 {[%clk 0:00:25]}  axb5 {[%clk 0:02:18]} 14. Bxb5 {[%clk 0:00:26]}  Bxb5 {[%clk 0:01:57]} 15. Nxb5 {[%clk 0:00:26]}  Qxb5 {[%clk 0:01:55]} 16. axb5 {[%clk 0:00:17]}  Rxa1+ {[%clk 0:01:55]} 17. Kf2 {[%clk 0:00:18]}  Ra2 {[%clk 0:01:50]} 18. Rc1 {[%clk 0:00:17]}  Rxb2 {[%clk 0:01:49]} 19. Rc2 {[%clk 0:00:14]}  Nc4 {[%clk 0:01:46]} 20. Rxb2 {[%clk 0:00:12]}  Nxd2 {[%clk 0:01:46]} 21. Rxd2 {[%clk 0:00:13]}  Rb8 {[%clk 0:01:45]} 22. e5 {[%clk 0:00:07]}  Nd7 {[%clk 0:01:37]} 23. exd6 {[%clk 0:00:06]}  exd6 {[%clk 0:01:36]} 24. Ne4 {[%clk 0:00:07]}  Rb6 {[%clk 0:01:22]} 25. Ra2 {[%clk 0:00:04]}  f5 {[%clk 0:01:13]} 26. Ra8+ {[%clk 0:00:04]}  Nf8 {[%clk 0:01:14]} 27. Ng5 {[%clk 0:00:04]}  Rxb5 {[%clk 0:01:14]} 28. Ne6 {[%clk 0:00:04]}  Rb7 {[%clk 0:00:59]} 29. Nxf8 {[%clk 0:00:03]}  Bxf8 {[%clk 0:00:59]} 30. Bh6 {[%clk 0:00:03]}  Rf7 {[%clk 0:00:59]} 31. Rd8 {[%clk 0:00:03]}  f4 {[%clk 0:00:51]} 32. h4 {[%clk 0:00:02]}  Rf5 {[%clk 0:00:50]} 33. Ke2 {[%clk 0:00:02]}  Rf6 {[%clk 0:00:43]} 34. Kd3 {[%clk 0:00:02]}  Rf5 {[%clk 0:00:42]} 35. Kc4 {[%clk 0:00:03]}  Rf6 {[%clk 0:00:42]} 36. Kb5 {[%clk 0:00:03]}  Rf5 {[%clk 0:00:35]} 37. Bxf8 {[%clk 0:00:03]}  Rxf8 {[%clk 0:00:35]} 38. Rxd6 {[%clk 0:00:04]}  Rb8+ {[%clk 0:00:28]} 39. Kxc5 {[%clk 0:00:04]}  Rb2 {[%clk 0:00:29]} 40. Rc6 {[%clk 0:00:02]}  Kf7 {[%clk 0:00:30]} 41. Rc7+ {[%clk 0:00:02]}  Ke8 {[%clk 0:00:29]} 42. Kd6 {[%clk 0:00:01]}  Rxg2 {[%clk 0:00:29]} 43. Rxh7 {[%clk 0:00:01]}  Rf2 {[%clk 0:00:25]} 44. Rh8+ {[%clk 0:00:01]}  Kf7 {[%clk 0:00:25]} 45. Kd7 {[%clk 0:00:02]}  Rxf3 {[%clk 0:00:25]} 46. d6 {[%clk 0:00:02]}  Rd3 {[%clk 0:00:26]} 47. Kc7 {[%clk 0:00:02]}  Rc3+ {[%clk 0:00:26]} 48. Kd8 {[%clk 0:00:02]}  Rd3 {[%clk 0:00:26]} 49. d7 {[%clk 0:00:03]}  f3 {[%clk 0:00:27]} 50. Rh7+ {[%clk 0:00:02]}  Kg8 {[%clk 0:00:26]} 51. Re7 {[%clk 0:00:01]}  f2 {[%clk 0:00:26]} 52. Ke8 {[%clk 0:00:01]}  f1=Q {[%clk 0:00:24]} 53. d8=Q {[%clk 0:00:02]}  Qf8# {[%clk 0:00:24]} 0-1


[Site "https://www.chess.com"]

[Event "Titled Tuesday Blitz May 16 Early 2023"]
[White "Bartel, Michal"]
[Black "Panda Sambit"]
[WhiteFideId "1119257"]
[BlackFideId "25091794"]
[WhiteElo "2282"]
[BlackElo "2272"]
[Result "0-1"]
[Round "05"]
[TimeControl "180+2"]
[Date "2023.05.16"]
[WhiteClock "0:01:36"]
[BlackClock "0:00:45"]

1. e4 {[%clk 0:03:00]}  c6 {[%clk 0:02:54]} 2. Nc3 {[%clk 0:02:57]}  d5 {[%clk 0:02:54]} 3. Nf3 {[%clk 0:02:57]}  Bg4 {[%clk 0:02:49]} 4. h3 {[%clk 0:02:57]}  Bxf3 {[%clk 0:02:48]} 5. Qxf3 {[%clk 0:02:57]}  e6 {[%clk 0:02:48]} 6. g4 {[%clk 0:02:56]}  Bc5 {[%clk 0:02:46]} 7. Bg2 {[%clk 0:02:56]}  Nd7 {[%clk 0:02:44]} 8. Qe2 {[%clk 0:02:56]}  Ne7 {[%clk 0:02:33]} 9. d3 {[%clk 0:02:51]}  Ng6 {[%clk 0:02:25]} 10. exd5 {[%clk 0:02:50]}  cxd5 {[%clk 0:02:21]} 11. Bxd5 {[%clk 0:02:46]}  O-O {[%clk 0:02:16]} 12. Bxb7 {[%clk 0:02:44]}  Rb8 {[%clk 0:02:12]} 13. Be4 {[%clk 0:02:40]}  f5 {[%clk 0:02:04]} 14. Bg2 {[%clk 0:02:24]}  fxg4 {[%clk 0:01:53]} 15. O-O {[%clk 0:02:23]}  Nde5 {[%clk 0:01:40]} 16. hxg4 {[%clk 0:02:19]}  Qh4 {[%clk 0:01:38]} 17. Be3 {[%clk 0:01:55]}  Nxg4 {[%clk 0:01:35]} 18. Rfe1 {[%clk 0:01:52]}  Qh2+ {[%clk 0:01:03]} 19. Kf1 {[%clk 0:01:52]}  Nxe3+ {[%clk 0:01:02]} 20. Qxe3 {[%clk 0:01:51]}  Bxe3 {[%clk 0:01:02]} 21. Rxe3 {[%clk 0:01:52]}  Rxb2 {[%clk 0:01:01]} 22. Rc1 {[%clk 0:01:47]}  Qf4 {[%clk 0:00:57]} 23. Bf3 {[%clk 0:01:44]}  Nh4 {[%clk 0:00:55]} 24. Ne2 {[%clk 0:01:44]}  Qg5 {[%clk 0:00:52]} 25. Ng1 {[%clk 0:01:36]}  Nxf3 {[%clk 0:00:46]} 26. Nxf3 {[%clk 0:01:36]}  Rxf3 {[%clk 0:00:46]} 27. Rxf3 {[%clk 0:01:36]}  Qxc1+ {[%clk 0:00:45]} 0-1


[Site "https://www.chess.com"]

[Event "Titled Tuesday Blitz May 16 Early 2023"]
[White "Weishaeutel, Moritz"]
[Black "Cezila Jr, Rubens"]
[WhiteFideId "12967300"]
[BlackFideId "2116723"]
[WhiteElo "2301"]
[BlackElo "2214"]
[Result "0-1"]
[Round "05"]
[TimeControl "180+2"]
[Date "2023.05.16"]
[WhiteClock "0:00:04"]
[BlackClock "0:00:08"]

1. e4 {[%clk 0:03:00]}  c6 {[%clk 0:02:59]} 2. Nc3 {[%clk 0:03:00]}  d5 {[%clk 0:03:00]} 3. Qe2 {[%clk 0:03:00]}  d4 {[%clk 0:02:59]} 4. Nd1 {[%clk 0:03:00]}  c5 {[%clk 0:02:58]} 5. d3 {[%clk 0:03:00]}  Nc6 {[%clk 0:02:57]} 6. f4 {[%clk 0:03:00]}  e5 {[%clk 0:02:56]} 7. Nf3 {[%clk 0:03:00]}  Bd6 {[%clk 0:02:55]} 8. g3 {[%clk 0:02:59]}  h5 {[%clk 0:02:45]} 9. Nf2 {[%clk 0:02:50]}  Nf6 {[%clk 0:02:40]} 10. f5 {[%clk 0:02:46]}  b5 {[%clk 0:02:33]} 11. Bg5 {[%clk 0:02:45]}  Qa5+ {[%clk 0:02:30]} 12. Nd2 {[%clk 0:02:31]}  Nb4 {[%clk 0:02:23]} 13. Qd1 {[%clk 0:02:23]}  Nd7 {[%clk 0:02:17]} 14. Bg2 {[%clk 0:02:00]}  c4 {[%clk 0:02:04]} 15. O-O {[%clk 0:01:58]}  Ba6 {[%clk 0:02:01]} 16. a4 {[%clk 0:01:27]}  bxa4 {[%clk 0:01:52]} 17. Nxc4 {[%clk 0:01:28]}  Bxc4 {[%clk 0:01:51]} 18. dxc4 {[%clk 0:01:29]}  Nc5 {[%clk 0:01:36]} 19. f6 {[%clk 0:01:15]}  g6 {[%clk 0:01:33]} 20. c3 {[%clk 0:00:59]}  Nc6 {[%clk 0:01:32]} 21. cxd4 {[%clk 0:00:59]}  Nxd4 {[%clk 0:01:30]} 22. Be3 {[%clk 0:01:00]}  Rd8 {[%clk 0:00:56]} 23. Bxd4 {[%clk 0:00:44]}  exd4 {[%clk 0:00:55]} 24. e5 {[%clk 0:00:45]}  Bxe5 {[%clk 0:00:46]} 25. Re1 {[%clk 0:00:27]}  Nd7 {[%clk 0:00:46]} 26. Rxa4 {[%clk 0:00:27]}  Qc7 {[%clk 0:00:42]} 27. Nd3 {[%clk 0:00:21]}  O-O {[%clk 0:00:41]} 28. Nxe5 {[%clk 0:00:20]}  Nxe5 {[%clk 0:00:41]} 29. Qd2 {[%clk 0:00:18]}  Ng4 {[%clk 0:00:38]} 30. Ra6 {[%clk 0:00:11]}  Qxc4 {[%clk 0:00:29]} 31. Rc6 {[%clk 0:00:11]}  Qb5 {[%clk 0:00:24]} 32. Rec1 {[%clk 0:00:08]}  d3 {[%clk 0:00:20]} 33. h3 {[%clk 0:00:07]}  Nxf6 {[%clk 0:00:15]} 34. Rxf6 {[%clk 0:00:08]}  Qe5 {[%clk 0:00:14]} 35. Rcf1 {[%clk 0:00:07]}  Qd4+ {[%clk 0:00:13]} 36. Qf2 {[%clk 0:00:06]}  d2 {[%clk 0:00:11]} 37. Qxd4 {[%clk 0:00:04]}  Rxd4 {[%clk 0:00:12]} 38. Rd1 {[%clk 0:00:04]}  Re8 {[%clk 0:00:13]} 39. Rf2 {[%clk 0:00:04]}  Re1+ {[%clk 0:00:13]} 40. Rf1 {[%clk 0:00:05]}  Re2 {[%clk 0:00:13]} 41. Bf3 {[%clk 0:00:05]}  Re3 {[%clk 0:00:13]} 42. Rf2 {[%clk 0:00:06]}  Rb3 {[%clk 0:00:13]} 43. Rdxd2 {[%clk 0:00:05]}  Rxd2 {[%clk 0:00:13]} 44. Rxd2 {[%clk 0:00:06]}  Rxf3 {[%clk 0:00:14]} 45. Kg2 {[%clk 0:00:06]}  Rb3 {[%clk 0:00:14]} 46. Kf2 {[%clk 0:00:06]}  Kg7 {[%clk 0:00:14]} 47. Kg2 {[%clk 0:00:07]}  g5 {[%clk 0:00:15]} 48. g4 {[%clk 0:00:07]}  hxg4 {[%clk 0:00:15]} 49. hxg4 {[%clk 0:00:08]}  Kg6 {[%clk 0:00:15]} 50. Rd6+ {[%clk 0:00:08]}  f6 {[%clk 0:00:16]} 51. Rd2 {[%clk 0:00:08]}  a5 {[%clk 0:00:16]} 52. Kg1 {[%clk 0:00:08]}  a4 {[%clk 0:00:17]} 53. Rd4 {[%clk 0:00:09]}  Rxb2 {[%clk 0:00:11]} 54. Rxa4 {[%clk 0:00:09]}  Kf7 {[%clk 0:00:11]} 55. Kf1 {[%clk 0:00:04]}  Ke6 {[%clk 0:00:11]} 56. Kg1 {[%clk 0:00:04]}  Ke5 {[%clk 0:00:11]} 57. Rc4 {[%clk 0:00:03]}  Rd2 {[%clk 0:00:11]} 58. Ra4 {[%clk 0:00:03]}  Rd4 {[%clk 0:00:10]} 59. Ra5+ {[%clk 0:00:03]}  Ke6 {[%clk 0:00:08]} 60. Ra6+ {[%clk 0:00:03]}  Kf7 {[%clk 0:00:09]} 61. Ra7+ {[%clk 0:00:04]}  Kg6 {[%clk 0:00:09]} 62. Ra4 {[%clk 0:00:04]}  Rxa4 {[%clk 0:00:08]} 0-1


[Site "https://www.chess.com"]

[Event "Titled Tuesday Blitz May 16 Early 2023"]
[White "Al-Tarboush, Ward"]
[Black "Kalajzic, Ivan"]
[WhiteFideId "7601450"]
[BlackFideId "14506378"]
[WhiteElo "2265"]
[BlackElo "2203"]
[Result "1-0"]
[Round "05"]
[TimeControl "180+2"]
[Date "2023.05.16"]
[WhiteClock "0:01:13"]
[BlackClock "0:00:00"]

1. d4 {[%clk 0:02:45]}  Nc6 {[%clk 0:02:59]} 2. d5 {[%clk 0:02:45]}  Ne5 {[%clk 0:02:59]} 3. f4 {[%clk 0:02:43]}  Ng6 {[%clk 0:02:59]} 4. f5 {[%clk 0:02:43]}  Ne5 {[%clk 0:02:59]} 5. Bf4 {[%clk 0:02:42]}  d6 {[%clk 0:02:59]} 6. e4 {[%clk 0:02:42]}  g6 {[%clk 0:02:59]} 7. Bxe5 {[%clk 0:02:36]}  dxe5 {[%clk 0:02:59]} 8. fxg6 {[%clk 0:02:32]}  hxg6 {[%clk 0:02:58]} 9. Nf3 {[%clk 0:02:33]}  Qd6 {[%clk 0:02:49]} 10. Nbd2 {[%clk 0:02:30]}  Bg7 {[%clk 0:02:16]} 11. Bb5+ {[%clk 0:02:29]}  Kf8 {[%clk 0:02:15]} 12. Qe2 {[%clk 0:02:29]}  a6 {[%clk 0:02:11]} 13. Bd3 {[%clk 0:02:28]}  b5 {[%clk 0:02:10]} 14. O-O-O {[%clk 0:02:28]}  Nf6 {[%clk 0:02:05]} 15. Rhf1 {[%clk 0:02:28]}  Kg8 {[%clk 0:02:05]} 16. h3 {[%clk 0:02:28]}  Nh5 {[%clk 0:02:02]} 17. Qf2 {[%clk 0:02:25]}  Bh6 {[%clk 0:02:01]} 18. Nxe5 {[%clk 0:02:23]}  Nf4 {[%clk 0:01:50]} 19. Ng4 {[%clk 0:02:07]}  Bxg4 {[%clk 0:01:41]} 20. hxg4 {[%clk 0:02:08]}  Bg5 {[%clk 0:01:09]} 21. g3 {[%clk 0:02:05]}  Nxd3+ {[%clk 0:01:08]} 22. cxd3 {[%clk 0:02:06]}  Rh7 {[%clk 0:01:03]} 23. Kb1 {[%clk 0:02:04]}  Bxd2 {[%clk 0:01:02]} 24. Rxd2 {[%clk 0:02:01]}  Rf8 {[%clk 0:00:46]} 25. Rc2 {[%clk 0:02:00]}  Rh3 {[%clk 0:00:45]} 26. Rg1 {[%clk 0:01:57]}  c5 {[%clk 0:00:39]} 27. Rxc5 {[%clk 0:01:56]}  Kg7 {[%clk 0:00:26]} 28. Rc6 {[%clk 0:01:54]}  Qe5 {[%clk 0:00:27]} 29. Qf4 {[%clk 0:01:52]}  Qd4 {[%clk 0:00:22]} 30. Rd1 {[%clk 0:01:53]}  Rh2 {[%clk 0:00:21]} 31. Qc1 {[%clk 0:01:39]}  Rfh8 {[%clk 0:00:20]} 32. Qc3 {[%clk 0:01:39]}  Qxc3 {[%clk 0:00:18]} 33. bxc3 {[%clk 0:01:38]}  Rg2 {[%clk 0:00:19]} 34. e5 {[%clk 0:01:34]}  Rhh2 {[%clk 0:00:19]} 35. Rxa6 {[%clk 0:01:31]}  Rb2+ {[%clk 0:00:16]} 36. Ka1 {[%clk 0:01:32]}  Rbc2 {[%clk 0:00:13]} 37. d6 {[%clk 0:01:31]}  exd6 {[%clk 0:00:13]} 38. exd6 {[%clk 0:01:31]}  Rhd2 {[%clk 0:00:09]} 39. Rxd2 {[%clk 0:01:28]}  Rxd2 {[%clk 0:00:10]} 40. d4 {[%clk 0:01:29]}  b4 {[%clk 0:00:11]} 41. cxb4 {[%clk 0:01:19]}  Rxd4 {[%clk 0:00:10]} 42. b5 {[%clk 0:01:19]}  Rxg4 {[%clk 0:00:08]} 43. b6 {[%clk 0:01:18]}  Rxg3 {[%clk 0:00:03]} 44. b7 {[%clk 0:01:17]}  Rg1+ {[%clk 0:00:04]} 45. Kb2 {[%clk 0:01:17]}  Rg2+ {[%clk 0:00:00]} 46. Ka3 {[%clk 0:01:13]} 1-0


[Site "https://www.chess.com"]

[Event "Titled Tuesday Blitz May 16 Early 2023"]
[White "Seinw1"]
[Black "Senft, Sean"]
[BlackFideId "2044960"]
[WhiteElo "2565"]
[BlackElo "1989"]
[Result "0-1"]
[Round "05"]
[TimeControl "180+2"]
[Date "2023.05.16"]
[WhiteClock "0:00:05"]
[BlackClock "0:00:56"]

1. c4 {[%clk 0:02:59]}  c5 {[%clk 0:02:57]} 2. Nc3 {[%clk 0:03:00]}  Nc6 {[%clk 0:02:57]} 3. g3 {[%clk 0:03:00]}  g6 {[%clk 0:02:58]} 4. Bg2 {[%clk 0:03:00]}  Bg7 {[%clk 0:02:58]} 5. e4 {[%clk 0:03:00]}  e5 {[%clk 0:02:59]} 6. Nge2 {[%clk 0:03:01]}  Nge7 {[%clk 0:02:59]} 7. O-O {[%clk 0:03:01]}  O-O {[%clk 0:03:00]} 8. d3 {[%clk 0:03:01]}  d6 {[%clk 0:03:00]} 9. f4 {[%clk 0:02:59]}  f5 {[%clk 0:03:01]} 10. Rb1 {[%clk 0:02:59]}  Be6 {[%clk 0:02:58]} 11. a3 {[%clk 0:02:58]}  Nd4 {[%clk 0:02:57]} 12. b4 {[%clk 0:02:54]}  Nec6 {[%clk 0:02:56]} 13. Nd5 {[%clk 0:02:38]}  Nxe2+ {[%clk 0:02:53]} 14. Qxe2 {[%clk 0:02:38]}  Nd4 {[%clk 0:02:52]} 15. Qd1 {[%clk 0:02:32]}  Bxd5 {[%clk 0:02:43]} 16. cxd5 {[%clk 0:02:11]}  b6 {[%clk 0:02:42]} 17. bxc5 {[%clk 0:02:07]}  bxc5 {[%clk 0:02:41]} 18. Bd2 {[%clk 0:01:59]}  Rb8 {[%clk 0:02:36]} 19. Qa4 {[%clk 0:01:57]}  fxe4 {[%clk 0:02:16]} 20. Bxe4 {[%clk 0:01:52]}  Rxb1 {[%clk 0:02:13]} 21. Rxb1 {[%clk 0:01:52]}  exf4 {[%clk 0:02:13]} 22. Bxf4 {[%clk 0:01:23]}  Ne2+ {[%clk 0:02:11]} 23. Kh1 {[%clk 0:01:23]}  Nxf4 {[%clk 0:02:08]} 24. gxf4 {[%clk 0:01:23]}  Qh4 {[%clk 0:01:57]} 25. Qxa7 {[%clk 0:01:12]}  Bh6 {[%clk 0:01:41]} 26. Qa4 {[%clk 0:00:37]}  Bxf4 {[%clk 0:01:34]} 27. Qc2 {[%clk 0:00:37]}  Be5 {[%clk 0:01:29]} 28. Kg1 {[%clk 0:00:19]}  Bd4+ {[%clk 0:01:15]} 29. Kh1 {[%clk 0:00:14]}  Rf2 {[%clk 0:01:05]} 30. Qxf2 {[%clk 0:00:08]}  Qxf2 {[%clk 0:01:03]} 31. a4 {[%clk 0:00:07]}  Qa2 {[%clk 0:00:56]} 32. Rb8+ {[%clk 0:00:05]}  Kg7 {[%clk 0:00:57]} 33. Rb7+ {[%clk 0:00:05]}  Kf6 {[%clk 0:00:56]} 0-1


[Site "https://www.chess.com"]